[Event "Titled Tuesday Blitz May 4 2021"]
[White "Aditya Mittal"]
[Black "Vovk, Orest"]
[WhiteFideId "35042025"]
[BlackFideId "14113490"]
[WhiteElo "2171"]
[BlackElo "2203"]
[Result "1-0"]
[Round "06"]
[TimeControl "180+1"]
[Date "2021.05.04"]
[WhiteClock "0:00:09"]
[BlackClock "0:00:02"]

1. d4 {[%clk 0:03:00]}  Nc6 {[%clk 0:02:59]} 2. c4 {[%clk 0:03:00]}  e5 {[%clk 0:02:59]} 3. d5 {[%clk 0:02:59]}  Nce7 {[%clk 0:02:58]} 4. Nc3 {[%clk 0:02:59]}  Ng6 {[%clk 0:02:58]} 5. e3 {[%clk 0:02:55]}  Nf6 {[%clk 0:02:56]} 6. Bd3 {[%clk 0:02:54]}  Bb4 {[%clk 0:02:50]} 7. Ne2 {[%clk 0:02:54]}  O-O {[%clk 0:02:47]} 8. O-O {[%clk 0:02:51]}  d6 {[%clk 0:02:45]} 9. a3 {[%clk 0:02:50]}  Bxc3 {[%clk 0:02:40]} 10. Nxc3 {[%clk 0:02:51]}  Ne8 {[%clk 0:02:33]} 11. f4 {[%clk 0:02:42]}  f5 {[%clk 0:02:31]} 12. b4 {[%clk 0:02:37]}  e4 {[%clk 0:02:29]} 13. Be2 {[%clk 0:02:36]}  a5 {[%clk 0:02:25]} 14. Bb2 {[%clk 0:02:33]}  axb4 {[%clk 0:02:23]} 15. axb4 {[%clk 0:02:33]}  Rxa1 {[%clk 0:02:23]} 16. Qxa1 {[%clk 0:02:33]}  Qe7 {[%clk 0:02:17]} 17. Nb5 {[%clk 0:02:28]}  Bd7 {[%clk 0:02:13]} 18. Nd4 {[%clk 0:02:26]}  Nf6 {[%clk 0:02:12]} 19. Qa7 {[%clk 0:02:24]}  Bc8 {[%clk 0:02:07]} 20. Ra1 {[%clk 0:02:19]}  Ng4 {[%clk 0:02:00]} 21. Bxg4 {[%clk 0:02:12]}  fxg4 {[%clk 0:02:00]} 22. c5 {[%clk 0:02:12]}  Qf7 {[%clk 0:01:39]} 23. Qa2 {[%clk 0:01:49]}  Nxf4 {[%clk 0:01:12]} 24. exf4 {[%clk 0:01:13]}  Qxf4 {[%clk 0:01:13]} 25. Qb1 {[%clk 0:01:13]}  Qf2+ {[%clk 0:00:55]} 26. Kh1 {[%clk 0:01:13]}  g3 {[%clk 0:00:55]} 27. Bc3 {[%clk 0:00:54]}  gxh2 {[%clk 0:00:49]} 28. Qe1 {[%clk 0:00:50]}  Qf4 {[%clk 0:00:07]} 29. Ne6 {[%clk 0:00:50]}  Bxe6 {[%clk 0:00:07]} 30. dxe6 {[%clk 0:00:51]}  Re8 {[%clk 0:00:07]} 31. Bd2 {[%clk 0:00:47]}  Qe5 {[%clk 0:00:06]} 32. Bc3 {[%clk 0:00:44]}  Qf4 {[%clk 0:00:05]} 33. Qf1 {[%clk 0:00:38]}  Qxf1+ {[%clk 0:00:04]} 34. Rxf1 {[%clk 0:00:38]}  Rxe6 {[%clk 0:00:04]} 35. Kxh2 {[%clk 0:00:38]}  dxc5 {[%clk 0:00:04]} 36. bxc5 {[%clk 0:00:38]}  Rc6 {[%clk 0:00:05]} 37. Bd4 {[%clk 0:00:38]}  b6 {[%clk 0:00:05]} 38. cxb6 {[%clk 0:00:37]}  cxb6 {[%clk 0:00:06]} 39. Rb1 {[%clk 0:00:38]}  Rd6 {[%clk 0:00:05]} 40. Bxb6 {[%clk 0:00:37]}  h6 {[%clk 0:00:05]} 41. Bc5 {[%clk 0:00:37]}  Re6 {[%clk 0:00:06]} 42. Be3 {[%clk 0:00:37]}  Re7 {[%clk 0:00:05]} 43. Kg3 {[%clk 0:00:37]}  g5 {[%clk 0:00:04]} 44. Kg4 {[%clk 0:00:37]}  Kg7 {[%clk 0:00:05]} 45. Kf5 {[%clk 0:00:38]}  Rf7+ {[%clk 0:00:05]} 46. Kxe4 {[%clk 0:00:38]}  Kg6 {[%clk 0:00:06]} 47. g4 {[%clk 0:00:38]}  Re7+ {[%clk 0:00:04]} 48. Kf3 {[%clk 0:00:38]}  Re6 {[%clk 0:00:04]} 49. Rb5 {[%clk 0:00:36]}  Rf6+ {[%clk 0:00:03]} 50. Kg3 {[%clk 0:00:36]}  Re6 {[%clk 0:00:03]} 51. Kf2 {[%clk 0:00:34]}  Rf6+ {[%clk 0:00:03]} 52. Ke2 {[%clk 0:00:34]}  Re6 {[%clk 0:00:04]} 53. Kd3 {[%clk 0:00:32]}  Rd6+ {[%clk 0:00:04]} 54. Kc2 {[%clk 0:00:22]}  Re6 {[%clk 0:00:05]} 55. Kd3 {[%clk 0:00:15]}  Rd6+ {[%clk 0:00:05]} 56. Ke2 {[%clk 0:00:16]}  Re6 {[%clk 0:00:05]} 57. Rd5 {[%clk 0:00:14]}  Rf6 {[%clk 0:00:04]} 58. Bd4 {[%clk 0:00:14]}  Re6+ {[%clk 0:00:04]} 59. Kf3 {[%clk 0:00:15]}  h5 {[%clk 0:00:04]} 60. gxh5+ {[%clk 0:00:15]}  Kxh5 {[%clk 0:00:05]} 61. Be3 {[%clk 0:00:16]}  Rf6+ {[%clk 0:00:04]} 62. Ke4 {[%clk 0:00:16]}  Re6+ {[%clk 0:00:04]} 63. Kf3 {[%clk 0:00:16]}  Rf6+ {[%clk 0:00:04]} 64. Kg3 {[%clk 0:00:17]}  Rg6 {[%clk 0:00:05]} 65. Re5 {[%clk 0:00:18]}  Rg8 {[%clk 0:00:05]} 66. Re7 {[%clk 0:00:17]}  Kg6 {[%clk 0:00:04]} 67. Kg4 {[%clk 0:00:18]}  Rb8 {[%clk 0:00:03]} 68. Re6+ {[%clk 0:00:17]}  Kf7 {[%clk 0:00:03]} 69. Re4 {[%clk 0:00:17]}  Rb5 {[%clk 0:00:03]} 70. Bxg5 {[%clk 0:00:18]}  Kg6 {[%clk 0:00:03]} 71. Bf4 {[%clk 0:00:18]}  Kf6 {[%clk 0:00:03]} 72. Be3 {[%clk 0:00:18]}  Ra5 {[%clk 0:00:02]} 73. Bd4+ {[%clk 0:00:19]}  Kg6 {[%clk 0:00:02]} 74. Kf4 {[%clk 0:00:20]}  Kf7 {[%clk 0:00:02]} 75. Kf3 {[%clk 0:00:18]}  Ra3+ {[%clk 0:00:02]} 76. Kg4 {[%clk 0:00:18]}  Ra5 {[%clk 0:00:03]} 77. Kf4 {[%clk 0:00:16]}  Kg6 {[%clk 0:00:03]} 78. Re6+ {[%clk 0:00:15]}  Kf7 {[%clk 0:00:04]} 79. Rb6 {[%clk 0:00:15]}  Ra4 {[%clk 0:00:03]} 80. Ke5 {[%clk 0:00:15]}  Ra5+ {[%clk 0:00:03]} 81. Ke4 {[%clk 0:00:15]}  Ra2 {[%clk 0:00:03]} 82. Kf5 {[%clk 0:00:14]}  Ra5+ {[%clk 0:00:02]} 83. Be5 {[%clk 0:00:15]}  Ra2 {[%clk 0:00:03]} 84. Rb7+ {[%clk 0:00:15]}  Kg8 {[%clk 0:00:03]} 85. Ke6 {[%clk 0:00:11]}  Re2 {[%clk 0:00:02]} 86. Rd7 {[%clk 0:00:06]}  Re1 {[%clk 0:00:03]} 87. Kf6 {[%clk 0:00:06]}  Rf1+ {[%clk 0:00:03]} 88. Kg6 {[%clk 0:00:07]}  Rg1+ {[%clk 0:00:03]} 89. Kf5 {[%clk 0:00:07]}  Rf1+ {[%clk 0:00:03]} 90. Ke6 {[%clk 0:00:06]}  Re1 {[%clk 0:00:04]} 91. Rg7+ {[%clk 0:00:06]}  Kf8 {[%clk 0:00:03]} 92. Rh7 {[%clk 0:00:07]}  Rg1 {[%clk 0:00:02]} 93. Rb7 {[%clk 0:00:06]}  Kg8 {[%clk 0:00:01]} 94. Rb8+ {[%clk 0:00:07]}  Kh7 {[%clk 0:00:02]} 95. Rh8+ {[%clk 0:00:07]}  Kg6 {[%clk 0:00:02]} 96. Rg8+ {[%clk 0:00:08]}  Kh7 {[%clk 0:00:02]} 97. Rxg1 {[%clk 0:00:09]} 1-0


[Site "https://www.chess.com"]

[Event "Titled Tuesday Blitz May 4 2021"]
[White "Alavkin, Arseny"]
[Black "Tristan, Leonardo"]
[WhiteFideId "4120612"]
[BlackFideId "113816"]
[WhiteElo "2416"]
[BlackElo "2404"]
[Result "1-0"]
[Round "06"]
[TimeControl "180+1"]
[Date "2021.05.04"]
[WhiteClock "0:02:04"]
[BlackClock "0:00:50"]

1. c4 {[%clk 0:03:00]}  e6 {[%clk 0:02:59]} 2. Nc3 {[%clk 0:02:58]}  d5 {[%clk 0:03:00]} 3. d4 {[%clk 0:02:59]}  a6 {[%clk 0:02:59]} 4. cxd5 {[%clk 0:02:56]}  exd5 {[%clk 0:03:00]} 5. Nf3 {[%clk 0:02:56]}  Nf6 {[%clk 0:03:01]} 6. Bg5 {[%clk 0:02:55]}  Be6 {[%clk 0:03:01]} 7. e3 {[%clk 0:02:55]}  Nbd7 {[%clk 0:03:01]} 8. Bd3 {[%clk 0:02:54]}  Bd6 {[%clk 0:03:01]} 9. O-O {[%clk 0:02:54]}  c6 {[%clk 0:03:02]} 10. Qc2 {[%clk 0:02:54]}  Qc7 {[%clk 0:03:02]} 11. Rab1 {[%clk 0:02:53]}  h6 {[%clk 0:03:02]} 12. Bh4 {[%clk 0:02:51]}  O-O {[%clk 0:03:02]} 13. b4 {[%clk 0:02:50]}  Rfc8 {[%clk 0:03:02]} 14. a4 {[%clk 0:02:49]}  b6 {[%clk 0:03:01]} 15. Rfc1 {[%clk 0:02:48]}  Qa7 {[%clk 0:02:59]} 16. Qe2 {[%clk 0:02:45]}  a5 {[%clk 0:02:59]} 17. b5 {[%clk 0:02:45]}  c5 {[%clk 0:02:58]} 18. e4 {[%clk 0:02:34]}  Bf4 {[%clk 0:02:23]} 19. exd5 {[%clk 0:02:20]}  Nxd5 {[%clk 0:02:12]} 20. Qe4 {[%clk 0:02:14]}  Nf8 {[%clk 0:01:00]} 21. Nxd5 {[%clk 0:02:12]}  Bxc1 {[%clk 0:01:01]} 22. Ne7+ {[%clk 0:02:07]}  Kh8 {[%clk 0:01:00]} 23. Nxc8 {[%clk 0:02:05]}  Ba3 {[%clk 0:00:50]} 24. Nxa7 {[%clk 0:02:04]} 1-0


[Site "https://www.chess.com"]

[Event "Titled Tuesday Blitz May 4 2021"]
[White "Albuquerque Junior,Wellington S."]
[Black "maxsergej"]
[WhiteFideId "2151480"]
[WhiteElo "2042"]
[BlackElo "2046"]
[Result "1-0"]
[Round "06"]
[TimeControl "180+1"]
[Date "2021.05.04"]
[WhiteClock "0:02:03"]
[BlackClock "0:01:40"]

1. c4 {[%clk 0:03:00]}  Nf6 {[%clk 0:02:59]} 2. g3 {[%clk 0:03:00]}  c6 {[%clk 0:02:59]} 3. Bg2 {[%clk 0:03:01]}  d5 {[%clk 0:02:59]} 4. Nf3 {[%clk 0:03:01]}  g6 {[%clk 0:02:59]} 5. b3 {[%clk 0:03:01]}  Bg7 {[%clk 0:02:59]} 6. Bb2 {[%clk 0:03:02]}  O-O {[%clk 0:02:59]} 7. O-O {[%clk 0:03:03]}  b6 {[%clk 0:02:54]} 8. d4 {[%clk 0:02:58]}  Bb7 {[%clk 0:02:53]} 9. e3 {[%clk 0:02:56]}  Ne4 {[%clk 0:02:46]} 10. Nfd2 {[%clk 0:02:54]}  Nxd2 {[%clk 0:02:45]} 11. Nxd2 {[%clk 0:02:55]}  e6 {[%clk 0:02:45]} 12. e4 {[%clk 0:02:52]}  dxc4 {[%clk 0:02:34]} 13. Nxc4 {[%clk 0:02:51]}  Qc7 {[%clk 0:02:19]} 14. e5 {[%clk 0:02:43]}  Rd8 {[%clk 0:02:12]} 15. Nd6 {[%clk 0:02:38]}  Rxd6 {[%clk 0:02:11]} 16. exd6 {[%clk 0:02:39]}  Qxd6 {[%clk 0:02:11]} 17. Qd2 {[%clk 0:02:29]}  Nd7 {[%clk 0:02:07]} 18. Rfd1 {[%clk 0:02:25]}  a5 {[%clk 0:02:04]} 19. Rac1 {[%clk 0:02:12]}  Rc8 {[%clk 0:02:03]} 20. h4 {[%clk 0:02:08]}  h5 {[%clk 0:02:02]} 21. Rc2 {[%clk 0:02:04]}  c5 {[%clk 0:01:40]} 22. Bxb7 {[%clk 0:02:03]} 1-0


[Site "https://www.chess.com"]

[Event "Titled Tuesday Blitz May 4 2021"]
[White "Alvarez Fernandez, Enrique"]
[Black "Chitlange Sakshi"]
[WhiteFideId "2227398"]
[BlackFideId "35002899"]
[WhiteElo "2316"]
[BlackElo "1787"]
[Result "0-1"]
[Round "06"]
[TimeControl "180+1"]
[Date "2021.05.04"]
[WhiteClock "0:00:33"]
[BlackClock "0:00:31"]

1. e4 {[%clk 0:03:00]}  c6 {[%clk 0:02:59]} 2. d4 {[%clk 0:03:00]}  d5 {[%clk 0:03:00]} 3. exd5 {[%clk 0:03:00]}  cxd5 {[%clk 0:02:59]} 4. c4 {[%clk 0:03:01]}  Nf6 {[%clk 0:02:59]} 5. Nc3 {[%clk 0:03:00]}  Nc6 {[%clk 0:03:00]} 6. Nf3 {[%clk 0:02:59]}  Bg4 {[%clk 0:03:00]} 7. Be3 {[%clk 0:02:59]}  e6 {[%clk 0:02:54]} 8. Be2 {[%clk 0:02:59]}  dxc4 {[%clk 0:02:52]} 9. Bxc4 {[%clk 0:02:59]}  Be7 {[%clk 0:02:52]} 10. a3 {[%clk 0:02:57]}  Rc8 {[%clk 0:02:43]} 11. O-O {[%clk 0:02:56]}  O-O {[%clk 0:02:40]} 12. Be2 {[%clk 0:02:51]}  Nd5 {[%clk 0:02:34]} 13. Nxd5 {[%clk 0:02:50]}  Qxd5 {[%clk 0:02:35]} 14. h3 {[%clk 0:02:51]}  Bf5 {[%clk 0:02:26]} 15. Rc1 {[%clk 0:02:49]}  Rfd8 {[%clk 0:02:23]} 16. Bc4 {[%clk 0:02:48]}  Qd6 {[%clk 0:02:19]} 17. Qe2 {[%clk 0:02:44]}  Bf6 {[%clk 0:02:15]} 18. Rfd1 {[%clk 0:02:41]}  Ne7 {[%clk 0:02:14]} 19. g4 {[%clk 0:02:32]}  Be4 {[%clk 0:02:04]} 20. g5 {[%clk 0:02:32]}  Rxc4 {[%clk 0:01:47]} 21. Rxc4 {[%clk 0:02:27]}  Qd5 {[%clk 0:01:47]} 22. Nh2 {[%clk 0:01:57]}  Be5 {[%clk 0:01:33]} 23. Ng4 {[%clk 0:01:41]}  Bb8 {[%clk 0:01:29]} 24. Rc5 {[%clk 0:01:33]}  Qd6 {[%clk 0:01:17]} 25. Re5 {[%clk 0:01:15]}  Bc6 {[%clk 0:00:58]} 26. Bf4 {[%clk 0:01:09]}  Ng6 {[%clk 0:00:55]} 27. Bg3 {[%clk 0:00:42]}  Nxe5 {[%clk 0:00:55]} 28. Nxe5 {[%clk 0:00:42]}  Qd5 {[%clk 0:00:51]} 29. f3 {[%clk 0:00:40]}  Bxe5 {[%clk 0:00:49]} 30. Bxe5 {[%clk 0:00:41]}  Qxf3 {[%clk 0:00:48]} 31. Qxf3 {[%clk 0:00:40]}  Bxf3 {[%clk 0:00:48]} 32. Rd3 {[%clk 0:00:40]}  Be4 {[%clk 0:00:48]} 33. Rb3 {[%clk 0:00:40]}  Rc8 {[%clk 0:00:47]} 34. Rc3 {[%clk 0:00:39]}  Rxc3 {[%clk 0:00:40]} 35. bxc3 {[%clk 0:00:39]}  Bd5 {[%clk 0:00:40]} 36. Kf2 {[%clk 0:00:39]}  h6 {[%clk 0:00:38]} 37. h4 {[%clk 0:00:38]}  hxg5 {[%clk 0:00:38]} 38. hxg5 {[%clk 0:00:39]}  Kh7 {[%clk 0:00:38]} 39. Ke3 {[%clk 0:00:36]}  Kg6 {[%clk 0:00:39]} 40. Bf4 {[%clk 0:00:32]}  f6 {[%clk 0:00:39]} 41. gxf6 {[%clk 0:00:32]}  gxf6 {[%clk 0:00:40]} 42. Kd3 {[%clk 0:00:32]}  b5 {[%clk 0:00:39]} 43. Bb8 {[%clk 0:00:30]}  a6 {[%clk 0:00:38]} 44. Ba7 {[%clk 0:00:30]}  Kf5 {[%clk 0:00:38]} 45. Bb8 {[%clk 0:00:29]}  e5 {[%clk 0:00:38]} 46. Ke3 {[%clk 0:00:26]}  Bc4 {[%clk 0:00:36]} 47. Bc7 {[%clk 0:00:25]}  Ke6 {[%clk 0:00:35]} 48. Bb8 {[%clk 0:00:23]}  Kd5 {[%clk 0:00:34]} 49. Bc7 {[%clk 0:00:22]}  Bb3 {[%clk 0:00:32]} 50. Bd8 {[%clk 0:00:21]}  Ke6 {[%clk 0:00:28]} 51. Bc7 {[%clk 0:00:21]}  Kd5 {[%clk 0:00:27]} 52. Bd8 {[%clk 0:00:21]}  f5 {[%clk 0:00:27]} 53. dxe5 {[%clk 0:00:19]}  Kxe5 {[%clk 0:00:28]} 54. Bc7+ {[%clk 0:00:19]}  Kd5 {[%clk 0:00:29]} 55. Kf4 {[%clk 0:00:20]}  Bc2 {[%clk 0:00:29]} 56. Be5 {[%clk 0:00:20]}  Kc4 {[%clk 0:00:29]} 57. Bd4 {[%clk 0:00:20]}  Kb3 {[%clk 0:00:29]} 58. Bc5 {[%clk 0:00:20]}  Kxc3 {[%clk 0:00:29]} 59. Bb4+ {[%clk 0:00:21]}  Kb3 {[%clk 0:00:28]} 60. Ke5 {[%clk 0:00:21]}  Ka4 {[%clk 0:00:27]} 61. Kf4 {[%clk 0:00:21]}  a5 {[%clk 0:00:27]} 62. Bc5 {[%clk 0:00:22]}  b4 {[%clk 0:00:27]} 63. axb4 {[%clk 0:00:23]}  axb4 {[%clk 0:00:28]} 64. Bxb4 {[%clk 0:00:24]}  Kxb4 {[%clk 0:00:28]} 65. Ke5 {[%clk 0:00:25]}  Kc4 {[%clk 0:00:29]} 66. Kf4 {[%clk 0:00:26]}  Kd4 {[%clk 0:00:29]} 67. Kf3 {[%clk 0:00:26]}  Ke5 {[%clk 0:00:30]} 68. Ke3 {[%clk 0:00:26]}  f4+ {[%clk 0:00:30]} 69. Kf3 {[%clk 0:00:27]}  Kf5 {[%clk 0:00:31]} 70. Kf2 {[%clk 0:00:28]}  Ke4 {[%clk 0:00:31]} 71. Ke2 {[%clk 0:00:28]}  f3+ {[%clk 0:00:31]} 72. Kf2 {[%clk 0:00:29]}  Kf4 {[%clk 0:00:31]} 73. Kf1 {[%clk 0:00:29]}  Ke3 {[%clk 0:00:32]} 74. Kg1 {[%clk 0:00:30]}  f2+ {[%clk 0:00:32]} 75. Kf1 {[%clk 0:00:31]}  Bd3+ {[%clk 0:00:32]} 76. Kg2 {[%clk 0:00:32]}  f1=Q+ {[%clk 0:00:32]} 77. Kg3 {[%clk 0:00:33]}  Qg1+ {[%clk 0:00:31]} 78. Kh4 {[%clk 0:00:33]}  Kf4 {[%clk 0:00:30]} 79. Kh5 {[%clk 0:00:33]}  Qg5# {[%clk 0:00:31]} 0-1


[Site "https://www.chess.com"]

[Event "Titled Tuesday Blitz May 4 2021"]
[White "Ambrogi, Agustin"]
[Black "Araujo Filho, Luiz Antonio Coel"]
[WhiteFideId "170933"]
[BlackFideId "2130661"]
[WhiteElo "2214"]
[BlackElo "2233"]
[Result "1-0"]
[Round "06"]
[TimeControl "180+1"]
[Date "2021.05.04"]
[WhiteClock "0:00:21"]
[BlackClock "0:00:01"]

1. e4 {[%clk 0:02:49]}  c6 {[%clk 0:02:59]} 2. d4 {[%clk 0:02:48]}  d5 {[%clk 0:02:59]} 3. exd5 {[%clk 0:02:49]}  cxd5 {[%clk 0:02:57]} 4. c4 {[%clk 0:02:50]}  Nf6 {[%clk 0:02:57]} 5. Nc3 {[%clk 0:02:50]}  Nc6 {[%clk 0:02:57]} 6. Bg5 {[%clk 0:02:47]}  dxc4 {[%clk 0:02:46]} 7. Bxc4 {[%clk 0:02:45]}  e6 {[%clk 0:02:31]} 8. Nf3 {[%clk 0:02:40]}  Be7 {[%clk 0:02:30]} 9. O-O {[%clk 0:02:39]}  O-O {[%clk 0:02:30]} 10. a3 {[%clk 0:02:39]}  a6 {[%clk 0:02:29]} 11. Rc1 {[%clk 0:02:38]}  b5 {[%clk 0:02:23]} 12. Ba2 {[%clk 0:02:37]}  Bb7 {[%clk 0:02:24]} 13. Re1 {[%clk 0:02:33]}  Rc8 {[%clk 0:02:12]} 14. Qd3 {[%clk 0:02:23]}  b4 {[%clk 0:02:00]} 15. Bb1 {[%clk 0:02:21]}  g6 {[%clk 0:01:40]} 16. Bxf6 {[%clk 0:02:19]}  Bxf6 {[%clk 0:01:40]} 17. Ne4 {[%clk 0:02:14]}  bxa3 {[%clk 0:01:20]} 18. bxa3 {[%clk 0:02:12]}  Be7 {[%clk 0:01:12]} 19. Nc5 {[%clk 0:01:21]}  Bxc5 {[%clk 0:01:05]} 20. Rxc5 {[%clk 0:01:22]}  Nxd4 {[%clk 0:00:59]} 21. Rxc8 {[%clk 0:01:06]}  Nxf3+ {[%clk 0:00:59]} 22. Qxf3 {[%clk 0:00:59]}  Qxc8 {[%clk 0:00:52]} 23. Qf6 {[%clk 0:00:58]}  Qd8 {[%clk 0:00:43]} 24. Qb2 {[%clk 0:00:58]}  Qe7 {[%clk 0:00:33]} 25. Rc1 {[%clk 0:00:55]}  Rd8 {[%clk 0:00:31]} 26. h4 {[%clk 0:00:53]}  Bd5 {[%clk 0:00:28]} 27. h5 {[%clk 0:00:52]}  Qg5 {[%clk 0:00:25]} 28. f3 {[%clk 0:00:44]}  Bxf3 {[%clk 0:00:14]} 29. h6 {[%clk 0:00:44]}  Qe3+ {[%clk 0:00:11]} 30. Kh2 {[%clk 0:00:35]}  Qxh6+ {[%clk 0:00:11]} 31. Kg1 {[%clk 0:00:34]}  Qe3+ {[%clk 0:00:06]} 32. Kh2 {[%clk 0:00:33]}  Bd5 {[%clk 0:00:07]} 33. Qf6 {[%clk 0:00:29]}  Be4 {[%clk 0:00:03]} 34. Qxd8+ {[%clk 0:00:28]}  Kg7 {[%clk 0:00:02]} 35. Qc7 {[%clk 0:00:22]}  Qf4+ {[%clk 0:00:01]} 36. Qxf4 {[%clk 0:00:21]} 1-0


[Site "https://www.chess.com"]

[Event "Titled Tuesday Blitz May 4 2021"]
[White "Arkell, Keith C"]
[Black "Reprintsev, Alexander"]
[WhiteFideId "400270"]
[BlackFideId "14100541"]
[WhiteElo "2398"]
[BlackElo "2194"]
[Result "0-1"]
[Round "06"]
[TimeControl "180+1"]
[Date "2021.05.04"]
[WhiteClock "0:00:32"]
[BlackClock "0:00:05"]

1. d4 {[%clk 0:03:00]}  d5 {[%clk 0:02:56]} 2. Nf3 {[%clk 0:02:59]}  Nc6 {[%clk 0:02:53]} 3. c4 {[%clk 0:02:59]}  e5 {[%clk 0:02:53]} 4. dxe5 {[%clk 0:02:58]}  d4 {[%clk 0:02:53]} 5. a3 {[%clk 0:02:57]}  g6 {[%clk 0:02:53]} 6. Bg5 {[%clk 0:02:56]}  Qd7 {[%clk 0:02:52]} 7. Nbd2 {[%clk 0:02:55]}  h6 {[%clk 0:02:52]} 8. Bh4 {[%clk 0:02:53]}  g5 {[%clk 0:02:53]} 9. Bg3 {[%clk 0:02:54]}  g4 {[%clk 0:02:52]} 10. Nh4 {[%clk 0:02:50]}  Be7 {[%clk 0:02:51]} 11. h3 {[%clk 0:02:50]}  gxh3 {[%clk 0:02:29]} 12. Rxh3 {[%clk 0:02:48]}  Qe6 {[%clk 0:02:16]} 13. Nhf3 {[%clk 0:02:37]}  Qg6 {[%clk 0:02:09]} 14. b4 {[%clk 0:02:19]}  Bxh3 {[%clk 0:02:08]} 15. gxh3 {[%clk 0:02:18]}  O-O-O {[%clk 0:02:07]} 16. Qa4 {[%clk 0:02:12]}  f6 {[%clk 0:01:59]} 17. b5 {[%clk 0:02:10]}  Nxe5 {[%clk 0:01:58]} 18. Nxe5 {[%clk 0:02:02]}  fxe5 {[%clk 0:01:58]} 19. Bxe5 {[%clk 0:02:00]}  Bf6 {[%clk 0:01:55]} 20. Bxf6 {[%clk 0:01:57]}  Nxf6 {[%clk 0:01:56]} 21. Qxa7 {[%clk 0:01:57]}  Qc2 {[%clk 0:01:23]} 22. h4 {[%clk 0:01:50]}  Qc3 {[%clk 0:00:52]} 23. Rd1 {[%clk 0:01:43]}  Rhe8 {[%clk 0:00:30]} 24. Qa8+ {[%clk 0:01:37]}  Kd7 {[%clk 0:00:30]} 25. Qxb7 {[%clk 0:01:38]}  Ke7 {[%clk 0:00:27]} 26. Qf3 {[%clk 0:01:27]}  Qxf3 {[%clk 0:00:24]} 27. Nxf3 {[%clk 0:01:26]}  Ra8 {[%clk 0:00:21]} 28. Nxd4 {[%clk 0:01:26]}  Rxa3 {[%clk 0:00:20]} 29. e3 {[%clk 0:01:19]}  Kf7 {[%clk 0:00:15]} 30. Bg2 {[%clk 0:01:08]}  h5 {[%clk 0:00:14]} 31. Nf3 {[%clk 0:01:00]}  Ne4 {[%clk 0:00:13]} 32. Ng5+ {[%clk 0:00:47]}  Nxg5 {[%clk 0:00:13]} 33. hxg5 {[%clk 0:00:48]}  Kg6 {[%clk 0:00:13]} 34. Rd7 {[%clk 0:00:45]}  Kxg5 {[%clk 0:00:13]} 35. Rxc7 {[%clk 0:00:45]}  Rc3 {[%clk 0:00:10]} 36. Bd5 {[%clk 0:00:43]}  Rc2 {[%clk 0:00:08]} 37. Rf7 {[%clk 0:00:38]}  Kg6 {[%clk 0:00:06]} 38. b6 {[%clk 0:00:34]}  Re5 {[%clk 0:00:06]} 39. Rf4 {[%clk 0:00:33]}  Rg5 {[%clk 0:00:06]} 40. b7 {[%clk 0:00:32]}  Rg1# {[%clk 0:00:05]} 0-1


[Site "https://www.chess.com"]

[Event "Titled Tuesday Blitz May 4 2021"]
[White "Ashiev, Eduard"]
[Black "Garcia Fuentes, Sergio Miguel"]
[WhiteFideId "4130090"]
[BlackFideId "7300549"]
[WhiteElo "2106"]
[BlackElo "2167"]
[Result "0-1"]
[Round "06"]
[TimeControl "180+1"]
[Date "2021.05.04"]
[WhiteClock "0:00:09"]
[BlackClock "0:00:23"]

1. d4 {[%clk 0:02:56]}  g6 {[%clk 0:02:55]} 2. e4 {[%clk 0:02:55]}  Bg7 {[%clk 0:02:55]} 3. Nc3 {[%clk 0:02:55]}  c6 {[%clk 0:02:56]} 4. Nf3 {[%clk 0:02:54]}  d5 {[%clk 0:02:56]} 5. h3 {[%clk 0:02:54]}  dxe4 {[%clk 0:02:38]} 6. Nxe4 {[%clk 0:02:54]}  Nd7 {[%clk 0:02:36]} 7. Bd3 {[%clk 0:02:43]}  Ngf6 {[%clk 0:02:35]} 8. Ng3 {[%clk 0:02:42]}  O-O {[%clk 0:02:30]} 9. O-O {[%clk 0:02:42]}  c5 {[%clk 0:02:12]} 10. Re1 {[%clk 0:02:09]}  b6 {[%clk 0:01:55]} 11. Bf4 {[%clk 0:01:54]}  Bb7 {[%clk 0:01:50]} 12. Qe2 {[%clk 0:01:25]}  Re8 {[%clk 0:01:31]} 13. Rad1 {[%clk 0:01:02]}  cxd4 {[%clk 0:01:29]} 14. Ne5 {[%clk 0:00:32]}  Nxe5 {[%clk 0:01:23]} 15. Bxe5 {[%clk 0:00:31]}  Qd5 {[%clk 0:01:22]} 16. f3 {[%clk 0:00:26]}  Red8 {[%clk 0:01:05]} 17. h4 {[%clk 0:00:18]}  Rac8 {[%clk 0:00:58]} 18. h5 {[%clk 0:00:18]}  Qxa2 {[%clk 0:00:37]} 19. hxg6 {[%clk 0:00:17]}  hxg6 {[%clk 0:00:36]} 20. b3 {[%clk 0:00:16]}  Qa3 {[%clk 0:00:28]} 21. Bc4 {[%clk 0:00:14]}  Qc5 {[%clk 0:00:25]} 22. Ne4 {[%clk 0:00:09]}  Nxe4 {[%clk 0:00:24]} 23. fxe4 {[%clk 0:00:09]}  d3+ {[%clk 0:00:24]} 24. Qf2 {[%clk 0:00:10]}  Qxf2+ {[%clk 0:00:24]} 25. Kxf2 {[%clk 0:00:09]}  Bxe5 {[%clk 0:00:23]} 0-1


[Site "https://www.chess.com"]

[Event "Titled Tuesday Blitz May 4 2021"]
[White "Bach, Matthias"]
[Black "Bon, Michael"]
[WhiteFideId "4603168"]
[BlackFideId "620696"]
[WhiteElo "2213"]
[BlackElo "2437"]
[Result "0-1"]
[Round "06"]
[TimeControl "180+1"]
[Date "2021.05.04"]
[WhiteClock "0:00:05"]
[BlackClock "0:00:02"]

1. d4 {[%clk 0:03:00]}  d5 {[%clk 0:02:59]} 2. c4 {[%clk 0:03:01]}  Nc6 {[%clk 0:03:00]} 3. f4 {[%clk 0:03:00]}  e6 {[%clk 0:01:51]} 4. Nc3 {[%clk 0:02:52]}  Nf6 {[%clk 0:01:50]} 5. e3 {[%clk 0:02:49]}  g6 {[%clk 0:01:40]} 6. Nf3 {[%clk 0:02:48]}  Bg7 {[%clk 0:01:40]} 7. a3 {[%clk 0:02:28]}  O-O {[%clk 0:01:40]} 8. Be2 {[%clk 0:02:22]}  dxc4 {[%clk 0:01:37]} 9. Bxc4 {[%clk 0:02:21]}  b6 {[%clk 0:01:38]} 10. O-O {[%clk 0:02:16]}  Bb7 {[%clk 0:01:38]} 11. Bd2 {[%clk 0:02:12]}  Ne7 {[%clk 0:01:31]} 12. Be1 {[%clk 0:02:09]}  c5 {[%clk 0:01:28]} 13. dxc5 {[%clk 0:02:04]}  Rc8 {[%clk 0:01:04]} 14. Qxd8 {[%clk 0:01:57]}  Rfxd8 {[%clk 0:01:03]} 15. Na4 {[%clk 0:01:39]}  Nf5 {[%clk 0:00:54]} 16. Bf2 {[%clk 0:01:20]}  Ng4 {[%clk 0:00:42]} 17. Rfe1 {[%clk 0:01:12]}  Bc6 {[%clk 0:00:18]} 18. Nc3 {[%clk 0:01:05]}  bxc5 {[%clk 0:00:13]} 19. h3 {[%clk 0:00:43]}  Nxf2 {[%clk 0:00:13]} 20. Kxf2 {[%clk 0:00:44]}  Nd6 {[%clk 0:00:13]} 21. Bf1 {[%clk 0:00:28]}  Rb8 {[%clk 0:00:11]} 22. Rab1 {[%clk 0:00:25]}  Ne4+ {[%clk 0:00:11]} 23. Nxe4 {[%clk 0:00:24]}  Bxe4 {[%clk 0:00:10]} 24. Rbc1 {[%clk 0:00:19]}  Rxb2+ {[%clk 0:00:11]} 25. Re2 {[%clk 0:00:20]}  Rxe2+ {[%clk 0:00:10]} 26. Bxe2 {[%clk 0:00:21]}  Rc8 {[%clk 0:00:10]} 27. Nd2 {[%clk 0:00:18]}  Bd5 {[%clk 0:00:09]} 28. e4 {[%clk 0:00:18]}  Bd4+ {[%clk 0:00:09]} 29. Kf3 {[%clk 0:00:14]}  Ba8 {[%clk 0:00:09]} 30. Nb3 {[%clk 0:00:10]}  Rd8 {[%clk 0:00:09]} 31. g4 {[%clk 0:00:06]}  f5 {[%clk 0:00:09]} 32. Bd3 {[%clk 0:00:05]}  Kf7 {[%clk 0:00:02]} 0-1


[Site "https://www.chess.com"]